fUST/lending_fUST_20250707
["ID","MTS","AMOUNT","RATE_DAILY","PERIOD"]
[370042258,1751860242458,-500.62017214,0.00022973,2]
[370042259,1751860242470,-160.0,0.00023,2]
[370042260,1751860242480,-848.27993403,0.00023,7]
[370042261,1751860242490,-214.06929976,0.00023,7]
[370042262,1751860242499,-134829.11,0.00023,2]
[370042263,1751860242509,-33688.57665189,0.00023,2]
[370042264,1751860242520,-2093.99826574,0.00023003,8]
[370042265,1751860242530,-5542.71,0.000231,7]
[370042266,1751860242540,-73361.69,0.000231,7]
[370042267,1751860242550,-460.0,0.00023118,2]
[370042268,1751860242559,-460.0,0.00023118,2]
[370042269,1751860242569,-1448.07,0.00023118,2]
[370042270,1751860242578,-942.86,0.000232,7]
[370042271,1751860242588,-462.2,0.00023211,2]
[370042272,1751860242597,-939.22,0.00023213,2]
[370042273,1751860242607,-2093.99826574,0.00023245,8]
[370042274,1751860242616,-460.90720549,0.00023309,2]
[370042275,1751860242626,-464.26759024,0.00023309,2]
[370042276,1751860242635,-460.0,0.00023309,2]
[370042277,1751860242645,-462.5511712,0.00023309,2]
[370042278,1751860242654,-203.91261954,0.00023309,2]
[370042279,1751860242664,-460.0,0.00023309,2]
[370042280,1751860242673,-586.45707663,0.00023309,2]
[370042281,1751860242683,-25000.0,0.0002331,2]
[370042282,1751860242693,-6966.24529323,0.0002331,2]
[370042283,1751860242703,-151.0,0.0002331,2]
[370042284,1751860242712,-500.0,0.0002331,2]
[370042285,1751860242721,-500.0,0.0002331,2]
[370042286,1751860242730,-151.0,0.0002331,2]
[370042287,1751860242740,-500.0,0.0002331,2]
[370042288,1751860242749,-151.0,0.0002331,2]
[370042289,1751860242759,-218.6253697,0.0002331,2]
[370042290,1751860242768,-151.0,0.0002331,2]
[370042291,1751860242777,-151.0,0.0002331,2]
[370042292,1751860242786,-151.0,0.0002331,2]
[370042293,1751860242795,-151.0,0.0002331,2]
[370042294,1751860242805,-690.642,0.0002331,2]
[370042296,1751860242815,-151.0,0.0002331,2]
[370042298,1751860242824,-151.0,0.0002331,2]
[370042300,1751860242833,-153.05532517,0.0002331,2]
[370042302,1751860242842,-151.0,0.0002331,2]
[370042304,1751860242852,-500.0,0.0002331,2]
[370042305,1751860242863,-151.0,0.0002331,2]
[370042306,1751860242872,-500.0,0.0002331,2]
[370042307,1751860242882,-500.0,0.0002331,2]
[370042308,1751860242892,-207.4,0.0002331,2]
[370042309,1751860242901,-500.0,0.0002331,2]
[370042310,1751860242910,-151.0,0.0002331,2]
[370042311,1751860242919,-500.0,0.0002331,2]
[370042312,1751860242929,-500.0,0.0002331,2]
[370042313,1751860242938,-500.0,0.0002331,2]
[370042314,1751860242947,-500.0,0.0002331,2]
[370042315,1751860242958,-500.0,0.0002331,2]
[370042316,1751860242967,-500.0,0.0002331,2]
[370042317,1751860242976,-500.0,0.0002331,2]
[370042318,1751860242986,-151.0,0.0002331,2]
[370042319,1751860242995,-1500.0,0.0002331,2]
[370042320,1751860243004,-151.0,0.0002331,2]
[370042321,1751860243014,-151.0,0.0002331,2]
[370042322,1751860243025,-151.0,0.0002331,2]
[370042323,1751860243034,-1500.0,0.0002331,2]
[370042324,1751860243043,-5000.0,0.0002331,2]
[370042325,1751860243053,-1500.0,0.0002331,2]
[370042326,1751860243062,-151.0,0.0002331,2]
[370042327,1751860243071,-151.0,0.0002331,2]
[370042328,1751860243081,-172.0321181,0.0002331,2]
[370042329,1751860243090,-1500.0,0.0002331,2]
[370042330,1751860243099,-500.0,0.00023313,2]
[370042331,1751860243109,-160.2217902,0.00023313,2]
[370042332,1751860243119,-500.0,0.00023313,2]
[370042333,1751860243129,-500.0,0.00023313,2]
[370042334,1751860243139,-160.21940151,0.00023313,2]
[370042335,1751860243148,-407.77750819,0.00023313,2]
[370042336,1751860243164,-716.195754,0.00023365,2]
[370042337,1751860243174,-460.0,0.00023392,2]
[370042338,1751860243184,-562.05,0.00023392,2]
[370042339,1751860243194,-1448.07,0.00023392,2]
[370042340,1751860243203,-151.0,0.000234,7]
[370042341,1751860243213,-742.6949969,0.0002342,2]
[370042342,1751860243222,-770.17471178,0.00023475,2]
[370042343,1751860243233,-462.24175684,0.00023485,2]
[370042344,1751860243244,-2093.99826574,0.00023486,9]
[370042345,1751860243254,-939.39594836,0.00023487,2]
[370042346,1751860243265,-151.0,0.000235,9]
[370042347,1751860243274,-1000.41382127,0.00023521,2]
[370042348,1751860243283,-503.38998845,0.00023521,2]
[370042349,1751860243293,-1001.63143899,0.00023521,2]
[370042350,1751860243303,-500.9883499,0.00023521,2]
[370042351,1751860243312,-1001.45402128,0.00023521,2]
[370042352,1751860243322,-501.59288037,0.00023521,2]
[370042353,1751860243331,-1000.0,0.00023521,2]
[370042354,1751860243341,-1200.0,0.00023521,2]
[370042355,1751860243350,-1001.43177517,0.00023521,2]
[370042356,1751860243360,-503.61122177,0.00023521,2]
[370042357,1751860243369,-502.91263907,0.00023521,2]
[370042358,1751860243378,-503.73528866,0.00023521,2]
[370042359,1751860243388,-501.61453854,0.00023521,2]
[370042360,1751860243397,-503.69021224,0.00023521,2]
[370042361,1751860243407,-1002.37238666,0.00023521,2]
[370042362,1751860243416,-1001.76193686,0.00023521,2]
[370042363,1751860243425,-1223.16682618,0.00023529,2]
[370042364,1751860243435,-798.67117612,0.0002353,2]
[370042365,1751860243443,-200.0,0.00023561,2]
[370042366,1751860243455,-200.0,0.00023561,2]
[370042367,1751860243465,-200.0,0.00023561,2]
[370042368,1751860243476,-200.0,0.00023561,2]
[370042369,1751860243486,-200.0,0.00023561,2]
[370042370,1751860243497,-304.53261215,0.00023561,2]
[370042371,1751860243506,-828.22200964,0.00023585,2]
[370042372,1751860243515,-151.0,0.000236,5]
[370042373,1751860243525,-858.86622399,0.0002364,2]
[370042374,1751860243534,-151.0,0.00023664,6]
[370042375,1751860243543,-409.69866821,0.00023666,2]
[370042376,1751860243553,-1448.07,0.00023666,2]
[370042377,1751860243562,-967.0,0.00023672,2]
[370042378,1751860243573,-648.015,0.00023672,2]
[370042379,1751860243582,-2153.0,0.00023672,2]
[370042380,1751860243591,-150.063,0.00023672,2]
[370042381,1751860243603,-890.64427428,0.00023695,2]
[370042382,1751860243613,-823.0,0.00023724,2]
[370042383,1751860243623,-2093.99826574,0.00023728,9]
[370042384,1751860243633,-923.59811243,0.0002375,2]
[370042385,1751860243643,-957.77124259,0.00023805,2]
[370042386,1751860243652,-2200.0,0.00023813,2]
[370042387,1751860243662,-802.654,0.00023813,2]
[370042388,1751860243671,-169.51761584,0.00023815,2]
[370042389,1751860243682,-25000.0,0.00023858,2]
[370042390,1751860243691,-5000.0,0.00023858,2]
[370042391,1751860243701,-993.20877856,0.0002386,2]
[370042392,1751860243711,-501.71811265,0.0002386,2]
[370042393,1751860243720,-500.42383133,0.0002386,2]
[370042394,1751860243729,-1000.0,0.0002386,2]
[370042395,1751860243739,-1029.95750337,0.00023915,2]
[370042396,1751860243750,-1448.07,0.0002394,2]
[370042397,1751860243761,-2093.99826574,0.00023969,10]
[370042398,1751860243771,-1068.065931,0.0002397,2]
[370042399,1751860243781,-151.0,0.00024,7]
[370042400,1751860243791,-151.0,0.00024,10]
[370042401,1751860243800,-160.0,0.00024,7]
[370042402,1751860243809,-160.0,0.00024,7]
[370042403,1751860243819,-837.79946008,0.00024,7]
[370042404,1751860243828,-160.0,0.00024,7]
[370042405,1751860243837,-230.48668418,0.00024,7]
[370042406,1751860243847,-134829.11,0.00024,2]
[370042407,1751860243856,-991.02615029,0.00024,4]
[370042408,1751860243866,-991.02615029,0.00024,4]
[370042409,1751860243875,-991.02615029,0.00024,4]
[370042410,1751860243884,-991.02615029,0.00024,4]
[370042411,1751860243894,-991.02615029,0.00024,4]
[370042412,1751860243903,-991.02615029,0.00024,4]
[370042413,1751860243912,-991.02615029,0.00024,4]
[370042414,1751860243921,-991.02615029,0.00024,4]
[370042415,1751860243930,-991.02615029,0.00024,4]
[370042416,1751860244047,-991.02615029,0.00024,4]
[370042417,1751860244057,-991.02615029,0.00024,4]
[370042418,1751860244067,-991.02615029,0.00024,4]
[370042419,1751860244076,-991.02615029,0.00024,4]
[370042420,1751860244085,-991.02615029,0.00024,4]
[370042421,1751860244095,-991.02615029,0.00024,4]
[370042422,1751860244104,-991.02615029,0.00024,4]
[370042423,1751860244114,-991.02615029,0.00024,4]
[370042424,1751860244123,-991.02615029,0.00024,4]
[370042425,1751860244133,-991.02615029,0.00024,4]
[370042426,1751860244142,-991.02,0.00024,4]
[370042427,1751860244151,-2312.39435067,0.00024,4]
[370042428,1751860244160,-2312.39435067,0.00024,4]
[370042429,1751860244170,-2312.39435067,0.00024,4]
[370042430,1751860244179,-2312.39435067,0.00024,4]
[370042431,1751860244188,-2312.39435067,0.00024,4]
[370042432,1751860244197,-2312.39435067,0.00024,4]
[370042433,1751860244207,-2312.39435067,0.00024,4]
[370042434,1751860244216,-2312.39435067,0.00024,4]
[370042435,1751860244226,-2312.39435067,0.00024,4]
[370042436,1751860244235,-2312.39435067,0.00024,4]
[370042437,1751860244244,-2312.39435067,0.00024,4]
[370042438,1751860244253,-2312.39435067,0.00024,4]
[370042439,1751860244263,-2312.39435067,0.00024,4]
[370042440,1751860244272,-2312.39435067,0.00024,4]
[370042441,1751860244281,-2312.39435067,0.00024,4]
[370042442,1751860244290,-2312.39435067,0.00024,4]
[370042443,1751860244299,-150.18282476,0.00024,4]
[370042444,1751860244308,-150.18282476,0.00024,4]
[370042445,1751860244318,-150.18282476,0.00024,4]
[370042446,1751860244327,-150.18282476,0.00024,4]
[370042447,1751860244337,-150.18282476,0.00024,4]
[370042448,1751860244346,-150.18282476,0.00024,4]
[370042449,1751860244355,-150.18282476,0.00024,4]
[370042450,1751860244365,-150.18282476,0.00024,4]
[370042451,1751860244374,-150.18282476,0.00024,4]
[370042452,1751860244383,-150.18282476,0.00024,4]
[370042453,1751860244393,-150.18282476,0.00024,4]
[370042454,1751860244402,-150.18282476,0.00024,4]
[370042455,1751860244411,-150.18282476,0.00024,4]
[370042456,1751860244420,-150.18282476,0.00024,4]
[370042457,1751860244430,-150.18282476,0.00024,4]
[370042458,1751860244439,-150.18282476,0.00024,4]
[370042459,1751860244448,-150.18282476,0.00024,4]
[370042460,1751860244457,-150.18282476,0.00024,4]
[370042461,1751860244467,-150.18282476,0.00024,4]
[370042462,1751860244476,-150.18,0.00024,4]
[370042463,1751860244489,-350.42659112,0.00024,4]
[370042464,1751860244502,-350.42659112,0.00024,4]
[370042465,1751860244511,-350.42659112,0.00024,4]
[370042466,1751860244520,-350.42659112,0.00024,4]
[370042467,1751860244529,-350.42659112,0.00024,4]
[370042468,1751860244538,-350.42659112,0.00024,4]
[370042469,1751860244547,-350.42659112,0.00024,4]
[370042470,1751860244555,-350.42659112,0.00024,4]
[370042471,1751860244565,-350.42659112,0.00024,4]
[370042472,1751860244574,-350.42659112,0.00024,4]
[370042473,1751860244584,-350.42659112,0.00024,4]
[370042474,1751860244593,-350.42659112,0.00024,4]
[370042475,1751860244602,-350.42659112,0.00024,4]
[370042476,1751860244611,-350.42659112,0.00024,4]
[370042477,1751860244620,-350.42659112,0.00024,4]
[370042478,1751860244629,-350.42659112,0.00024,4]
[370042479,1751860244638,-215.21338352,0.00024,7]
[370042480,1751860244647,-2312.39435067,0.00024056,4]
[370042481,1751860244656,-350.42659112,0.00024056,4]
[370042482,1751860244666,-1500.0,0.00024068,2]
[370042483,1751860244675,-1800.0,0.00024068,2]
[370042484,1751860244684,-151.0,0.00024089,7]
[370042485,1751860244693,-5542.71,0.000241,7]
[370042486,1751860244703,-73361.69,0.000241,7]
[370042487,1751860244713,-159.737179,0.000242,8]
[370042488,1751860244722,-151.0,0.000242,6]
[370042489,1751860244731,-2093.99826574,0.0002421,10]
[370042490,1751860244740,-1448.07,0.00024214,2]
[370042491,1751860244749,-151.0,0.000243,5]
[370042492,1751860244759,-2312.39435067,0.00024304,4]
[370042493,1751860244768,-350.42659112,0.00024304,4]
[370042494,1751860244777,-366.6942869,0.00024384,2]
[370042495,1751860244786,-328.8174951,0.00024384,2]
[370042496,1751860244796,-942.86,0.000244,7]
[370042497,1751860244805,-25000.0,0.00024406,2]
[370042498,1751860244814,-5000.0,0.00024406,2]
[370042499,1751860244823,-509.57661228,0.00024408,2]
[370042500,1751860244832,-2314.177802,0.00024451,4]
[370042501,1751860244841,-2093.99826574,0.00024452,11]
[370042502,1751860244850,-150.0,0.00024455,2]
[370042503,1751860244859,-1448.26377952,0.00024488,2]
[370042504,1751860244869,-151.0,0.000245,8]
[370042505,1751860244878,-151.0,0.00024514,7]
[370042506,1751860244887,-1151.912169,0.00024521,2]
[370042507,1751860244897,-318.9845552,0.00024521,2]
[370042508,1751860244908,-576.0368563,0.00024521,2]
[370042509,1751860244918,-576.0368563,0.00024521,2]
[370042510,1751860244927,-576.0368563,0.00024521,2]
[370042511,1751860244936,-2312.39435067,0.00024552,4]
[370042512,1751860244947,-350.42659112,0.00024552,4]
[370042513,1751860244956,-2000.0,0.00024616,2]
[370042514,1751860244965,-2400.0,0.00024616,2]
[370042515,1751860244974,-71623.11517033,0.00024651,2]
[370042516,1751860244983,-300.0,0.00024657,4]
[370042517,1751860244992,-300.0,0.00024657,4]
[370042518,1751860245003,-300.0,0.00024657,4]
[370042519,1751860245013,-300.0,0.00024657,4]
[370042520,1751860245022,-300.0,0.00024657,4]
[370042521,1751860245032,-300.0,0.00024657,4]
[370042522,1751860245042,-327.85232221,0.00024657,4]
[370042523,1751860245051,-200.0,0.00024657,2]
[370042524,1751860245060,-210.00855503,0.00024657,2]
[370042525,1751860245070,-150.0,0.00024658,2]
[370042526,1751860245079,-200.0,0.00024658,15]
[370042527,1751860245093,-380.0,0.00024658,2]
[370042528,1751860245102,-329.59275799,0.00024658,2]
[370042529,1751860245111,-466.0,0.00024658,2]
[370042530,1751860245125,-215.0738,0.00024679,2]
[370042531,1751860245139,-307.3747141,0.00024682,2]
[370042532,1751860245152,-183.1484428,0.00024682,2]
[370042533,1751860245166,-536.0749767,0.00024682,2]
[370042534,1751860245177,-466.0,0.00024685,2]
[370042535,1751860245188,-2093.99826574,0.00024693,11]
[370042536,1751860245204,-1223.16682618,0.00024705,2]
[370042537,1751860245216,-466.0,0.00024713,2]
[370042538,1751860245234,-466.0,0.0002474,2]
[370042539,1751860245246,-466.0,0.00024768,2]
[370042540,1751860245260,-3635.28927689,0.00024769,2]
[370042541,1751860245272,-663.88376932,0.00024769,2]
[370042542,1751860245285,-2655.53507728,0.00024769,2]
[370042543,1751860245298,-5968.97896995,0.00024769,2]
[370042544,1751860245311,-3087.75188806,0.00024769,2]
[370042545,1751860245324,-466.0,0.00024795,2]
[370042546,1751860245336,-2000.0,0.000248,2]
[370042547,1751860245348,-2000.0,0.000248,2]
[370042548,1751860245360,-151.0,0.000248,7]
[370042549,1751860245371,-32178.0020528,0.000248,2]
[370042550,1751860245384,-1498.20536688,0.000248,2]
[370042551,1751860245396,-2312.39,0.000248,4]
[370042552,1751860245408,-198.605311,0.000248,7]
[370042553,1751860245421,-198.605311,0.000248,7]
[370042554,1751860245432,-350.42,0.000248,4]
[370042555,1751860245444,-238.40868167,0.00024821,7]
[370042556,1751860245457,-466.0,0.00024822,2]
[370042557,1751860245469,-150.4315,0.00024825,2]
[370042558,1751860245481,-1849.790396,0.0002484,5]
[370042559,1751860245499,-1498.20536688,0.00024849,2]
[370042560,1751860245512,-466.0,0.0002485,2]
[370042561,1751860245524,-1000.0,0.0002486,5]
[370042562,1751860245538,-466.0,0.00024877,2]
[370042563,1751860245550,-1000.0,0.0002488,5]
[370042564,1751860245564,-160.0,0.0002489,10]
[370042565,1751860245578,-209.0,0.0002489,16]
[370042566,1751860245590,-170.349019,0.00024898,7]
[370042567,1751860245600,-1498.20536688,0.00024898,2]
[370042568,1751860245610,-238011.9546,0.00024899,4]
[370042569,1751860245620,-151.0,0.000249,7]
[370042570,1751860245631,-160.0,0.000249,7]
[370042571,1751860245644,-2000.0,0.000249,2]
[370042572,1751860245657,-2000.0,0.000249,2]
[370042573,1751860245672,-157.0,0.000249,3]
[370042574,1751860245685,-154.67956278,0.000249,3]
[370042575,1751860245695,-157.0,0.000249,3]
[370042576,1751860245706,-157.13838285,0.000249,3]
[370042577,1751860245718,-154.0,0.000249,3]
[370042578,1751860245729,-201.40044229,0.000249,3]
[370042579,1751860245741,-154.0,0.000249,3]
[370042580,1751860245752,-154.0,0.000249,3]
[370042581,1751860245763,-154.0,0.000249,3]
[370042582,1751860245773,-154.0,0.000249,3]
[370042583,1751860245784,-154.0,0.000249,3]
[370042584,1751860245795,-154.0,0.000249,3]
[370042585,1751860245806,-156.90230019,0.000249,3]
[370042586,1751860245817,-318.0,0.000249,3]
[370042587,1751860245828,-318.0,0.000249,3]
[370042588,1751860245839,-318.0,0.000249,3]
[370042589,1751860245851,-318.0,0.000249,3]
[370042590,1751860245862,-277.85783841,0.000249,3]
[370042591,1751860245873,-500.8130656,0.000249,9]
[370042592,1751860245884,-1000.0,0.000249,5]
[370042593,1751860245897,-500.0,0.000249,9]
[370042594,1751860245909,-151.542808,0.000249,7]
[370042595,1751860245919,-151.923986,0.000249,7]
[370042596,1751860245930,-151.0,0.000249,7]
[370042597,1751860245941,-163.024337,0.000249,7]
[370042598,1751860245952,-151.535863,0.000249,7]
[370042599,1751860245963,-151.0,0.000249,7]
[370042600,1751860245975,-166.455803,0.000249,7]
[370042601,1751860245988,-166.455803,0.000249,7]
[370042602,1751860245999,-646240.708036,0.000249,2]
[370042603,1751860246011,-641.0,0.000249,2]
[370042604,1751860246021,-224.280574,0.000249,7]
[370042605,1751860246033,-151.0,0.000249,7]
[370042606,1751860246044,-224.280574,0.000249,7]
[370042607,1751860246056,-33688.57665189,0.000249,2]
[370042608,1751860246067,-360.526276,0.000249,7]
[370042609,1751860246078,-360.526276,0.000249,7]
[370042610,1751860246090,-151.0,0.000249,7]
[370042611,1751860246102,-261.019571,0.000249,7]
[370042612,1751860246113,-261.019571,0.000249,7]
[370042613,1751860246124,-152.604587,0.000249,7]
[370042614,1751860246135,-198.605311,0.000249,7]
[370042615,1751860246146,-198.605311,0.000249,7]
[370042617,1751860246157,-153.64599,0.000249,7]
[370042619,1751860246168,-151.0,0.000249,7]
[370042622,1751860246179,-151.0,0.000249,7]
[370042624,1751860246191,-192.269723,0.000249,7]
[370042626,1751860246203,-192.269723,0.000249,7]
[370042628,1751860246214,-151.0,0.000249,7]
[370042630,1751860246225,-466.0,0.00024905,2]
[370042633,1751860246235,-2614.02,0.00024906,6]
[370042635,1751860246246,-264.0,0.00024932,7]
[370042637,1751860246257,-466.0,0.00024932,2]
[370042639,1751860246268,-2093.99826574,0.00024934,12]
[370042641,1751860246279,-151.0,0.00024938,7]
[370042643,1751860246290,-1498.20536688,0.00024948,2]
[370042646,1751860246301,-2206.37857867,0.0002495,2]
[370042648,1751860246312,-2667.07095343,0.0002495,2]
[370042650,1751860246324,-25000.0,0.00024954,2]
[370042652,1751860246335,-5000.0,0.00024954,2]
[370042655,1751860246346,-466.0,0.00024959,2]
[370042657,1751860246356,-150.0,0.00024973,2]
[370042659,1751860246367,-1123.903134,0.0002498,5]
[370042661,1751860246379,-466.0,0.00024987,2]
[370042663,1751860246390,-774.68033754,0.0002499,30]
[370042666,1751860246401,-1498.20536688,0.00024997,2]
[370042668,1751860246413,-200.44896522,0.00024999,2]
[370042670,1751860246425,-1576.28721866,0.00024999,7]
[370042672,1751860246437,-2031.55831006,0.00025,14]
[370042674,1751860246446,-1463.03175074,0.00025,30]
[370042694,1751860246606,-1062.05690045,0.00025,2]
[370042696,1751860246622,-15975.48501423,0.00025,2]
[370042698,1751860246631,-149167.38649031,0.00025,2]
[370042701,1751860246650,-6174.50898678,0.00025,2]
[370042703,1751860246661,-660.7353499,0.00025,2]
[370042706,1751860246672,-927.74676198,0.00025,2]
[370042708,1751860246683,-1119.7675264,0.00025,2]
[370042710,1751860246694,-5136.2188089,0.00025,2]
[370042712,1751860246705,-37782.59335237,0.00025,2]
[370042714,1751860246714,-2614.7911119,0.00025,2]
[370042716,1751860246724,-207.42224574,0.00025,2]
[370042718,1751860246733,-10364.0,0.00025,2]
[370042720,1751860246742,-358.12256765,0.00025,2]
[370042722,1751860246751,-150.0,0.00025,2]
[370042724,1751860246761,-500.0,0.00025,2]
[370042727,1751860246771,-12009.92280486,0.00025,2]
[370042729,1751860246780,-5421.2075629,0.00025,10]
[370042731,1751860246791,-5744.70517081,0.00025,10]
[370042733,1751860246803,-572.26832117,0.00025,10]
[370042735,1751860246813,-150.0,0.00025,3]
[370042737,1751860246822,-4169.33244912,0.00025,2]
[370042739,1751860246833,-500.0,0.00025,2]
[370042742,1751860246844,-1336.30043752,0.00025,2]
[370042743,1751860246855,-358.26354368,0.00025,2]
[370042744,1751860246867,-373.56567764,0.00025,2]
[370042745,1751860247024,590.72091373,0.00017185,2]
[370042746,1751860247080,-478.57,0.00019649,2]
[370042747,1751860247091,-478.57,0.00019923,2]
[370042748,1751860247101,-478.57,0.00020196,2]
[370042749,1751860247111,-478.57,0.0002047,2]
[370042750,1751860247121,-478.57,0.00020744,2]
[370042751,1751860247131,-478.57,0.00021018,2]
[370042752,1751860247141,-478.57,0.00021292,2]
[370042753,1751860247150,-174.14270238,0.00021987,2]
[370042754,1751860247160,-1500.0,0.0002331,2]
[370042755,1751860247169,-1500.0,0.0002331,2]
[370042756,1751860247179,-1084.20832157,0.0002331,2]
[370042757,1751860247251,24900.0,0.00017188,2]
[370042758,1751860247307,460.0,0.00017186,2]
[370042759,1751860247343,460.0,0.0001746,2]
[370042760,1751860247382,460.0,0.00017734,2]
[370042761,1751860247416,460.0,0.00018008,2]
[370042762,1751860247451,460.0,0.00017184,2]
[370042763,1751860247944,460.0,0.00017458,2]
[370042764,1751860247988,460.0,0.00017732,2]
[370042765,1751860248032,460.0,0.00018006,2]
[370042766,1751860252917,460.0,0.00017185,2]
[370042767,1751860253192,460.0,0.00017459,2]
[370042768,1751860253463,256.45622366,0.00017733,2]
[370042769,1751860260985,500.0,0.00017184,2]
[370042770,1751860261394,500.0,0.00017184,2]
[370042771,1751860267457,460.0,0.00017186,2]
[370042772,1751860267723,460.0,0.0001746,2]
[370042773,1751860281980,460.0,0.00017185,2]
[370042774,1751860282233,460.0,0.00017459,2]
[370042775,1751860282509,460.0,0.00017733,2]
[370042776,1751860282755,460.0,0.00018007,2]
[370042777,1751860283352,460.0,0.00017185,2]
[370042778,1751860283607,460.0,0.00017459,2]
[370042779,1751860283866,238.25491378,0.00017733,2]
[370042780,1751860289506,460.0,0.00017183,2]
[370042781,1751860289788,460.0,0.00017457,2]
[370042782,1751860290039,460.0,0.00017731,2]
[370042783,1751860290306,460.0,0.00018005,2]
[370042784,1751860292703,460.0,0.00017185,2]
[370042785,1751860292968,460.0,0.00017459,2]
[370042786,1751860293238,460.0,0.00017733,2]
[370042787,1751860296578,460.0,0.00017183,2]
[370042788,1751860296865,460.0,0.00017457,2]
[370042789,1751860297127,460.0,0.00017731,2]
[370042790,1751860297382,460.0,0.00018005,2]
[370042791,1751860308624,460.0,0.00017185,2]
[370042792,1751860308952,460.0,0.00017186,2]
[370042793,1751860309235,460.0,0.0001746,2]
[370042794,1751860309586,460.0,0.00017734,2]
[370042795,1751860309848,460.0,0.00018008,2]
[370042796,1751860311000,460.0,0.00017459,2]
[370042797,1751860311264,573.15,0.00017733,2]
[370042798,1751860312824,460.0,0.00017183,2]
[370042799,1751860313018,460.0,0.00017457,2]
[370042800,1751860313595,460.0,0.00017731,2]
[370042801,1751860313865,215.13920599,0.00018005,2]
[370042802,1751860500097,171.52536176,0.00025343,120]
[370042803,1751860516004,977.0,0.000168,2]
[370042804,1751860582136,239.508514,0.00013699,2]
[370042806,1751861133118,-300.0,0.0001718,2]
[370042807,1751861133139,-15.78403104,0.0001718,2]
[370042808,1751861141080,-284.21596896,0.0001718,2]
[370042809,1751861141102,-300.0,0.0001718,2]
[370042810,1751861141122,-75.74473425,0.0001718,2]
[370042811,1751861232087,-224.25526575,0.0001718,2]
[370042812,1751861232108,-68.91006467,0.00017182,2]
[370042813,1751861235086,-391.08993533,0.00017182,2]
[370042814,1751861235106,-300.85989629,0.00017182,2]
[370042815,1751861235127,-1200.0,0.00017182,2]
[370042816,1751861235148,-300.0,0.00017182,2]
[370042817,1751861235169,-460.0,0.00017183,2]
[370042818,1751861235191,-19.1251424,0.00017183,2]
[370042819,1751861348093,-463.65947826,0.00017185,2]
[370042820,1751861348122,-319.48757253,0.00017186,2]
[370042821,1751861348143,-300.21610662,0.00017186,2]
[370042822,1751861348165,-460.0,0.00017186,2]
[370042823,1751861348187,-605.38,0.0001746,2]
[370042824,1751861348209,-300.0,0.00018005,2]
[370042825,1751861348230,-460.0,0.00018006,2]
[370042826,1751861348250,-460.0,0.00018006,2]
[370042827,1751861348272,-522.45,0.00018006,2]
[370042828,1751861348294,-461.41962325,0.00018006,2]
[370042829,1751861348316,-460.73377107,0.00018006,2]
[370042830,1751861348338,-460.0,0.00018006,2]
[370042831,1751861348358,-92.24335058,0.00018006,2]
[370042832,1751861348390,-410.69050572,0.00018006,2]
[370042833,1751861348412,-186.83377271,0.00018006,2]
[370042834,1751861367168,-273.16622729,0.00018006,2]
[370042835,1751861367193,-461.45958785,0.00018006,2]
[370042836,1751861367214,-462.14498283,0.00018006,2]
[370042837,1751861367240,-601.92313938,0.00018006,2]
[370042838,1751861367266,-460.0,0.00018006,2]
[370042839,1751861367289,-460.0,0.00018006,2]
[370042840,1751861367309,-542.28690944,0.00018006,2]